Cogmind - Beta 11 X5 @@@ ROGUE MODE // 2021.06.11 @ 15:57:57 Player: Terminus Result: Destroyed by Y-54 Guardian with Gatling Laser Performance ------------- Evolutions (4) 2000 Regions Visited (14) 2800 Robots Destroyed (250) 1250 Value Destroyed (7693) 7693 Prototype IDs (28) 560 Alien Tech Used (1) 200 Bonus (784) 784 TOTAL SCORE: 15287 Bonus ------- High Alert Combat Kills 447 Follower Combat Kills 37 Met Data Miner 300 Cogmind --------- Core Integrity 0/850 Matter 261/300 Energy 334/360 System Corruption 34% Temperature Cool (6) Movement Walking (112) Location -6/Lower Caves Parts ------- > --- POWER (2) -------- Light Angular Momentum Engine Fission Core > --- PROPULSION (4) --- Carbon-fiber Leg Improved Carbon-fiber Leg Improved Carbon-fiber Leg Experimental Flexi-carbon Leg > --- UTILITY (7) ------ Advanced Heat Sink Advanced Heat Sink Medium Storage Unit Improved Sensor Array Advanced Signal Interpreter Makeshift Armor Plating Hacking Suite > --- WEAPON (3) ------- Cooled Plasma Rifle Heavy Dispersion Rifle Enhanced Coil Gun > --- INVENTORY (10) --- Carbon-fiber Leg Advanced Energy Well (500) Improved Sensor Array Advanced Terrain Scanner Heavy Laser Heavy Laser Heavy Plasma Cannon Compact Tesla Bomb Launcher Plasma Cutter Axe Peak State ------------ > --- POWER ------------ Light Angular Momentum Engine Fission Core > --- PROPULSION ------- Carbon-fiber Leg Carbon-fiber Leg Improved Carbon-fiber Leg Experimental Flexi-carbon Leg > --- UTILITY ---------- Advanced Heat Sink Advanced Heat Sink Medium Storage Unit Improved Sensor Array Advanced Signal Interpreter Makeshift Armor Plating Hacking Suite > --- WEAPON ----------- Cooled Plasma Rifle Heavy Dispersion Rifle Compact Tesla Bomb Launcher > --- INVENTORY -------- Carbon-fiber Leg Advanced Energy Well Improved Sensor Array Advanced Terrain Scanner Heavy Laser Heavy Laser Heavy Plasma Cannon Enhanced Coil Gun Plasma Cutter Axe [Rating: 82] Favorites ----------- Power Improved Ion Engine Engine Improved Ion Engine Power Core Fission Core Reactor Antimatter Reactor Propulsion Carbon-fiber Leg Leg Carbon-fiber Leg Utility Cooling System Device Cooling System Storage High-capacity Storage Unit Processor Improved Signal Interpreter Hackware Hacking Suite Protection Hardened Light Armor Plating Weapon Enhanced Autogun Energy Gun Heavy Particle Gun Energy Cannon Particle Cannon Ballistic Gun Enhanced Autogun Launcher Compact Tesla Bomb Launcher Special Weapon Plasma Cutter Slashing Weapon Axe Build | -11 -10 -9 -9 -9 -8 -8 -7 -7 -7 -7 -6 -6 -6 -6 ------- Run | Scr Mat Mat Min Exi Min Mat Fac Low Low Dat Pro Fac Low Low Slots Evolved 8 | . . 2 . . . 2 2 . . . . 2 . . Power . | . . . . . . . . . . . . . . . Propulsion 2 | . . . . . . 1 . . . . . 1 . . Utility 5 | . . 1 . . . 1 2 . . . . 1 . . Weapon 1 | . . 1 . . . . . . . . . . . . Parts Attached 232 | 6 25 50 5 . 4 31 11 6 4 . 12 70 2 6 Power 25 | 1 6 9 . . . 1 1 . . . 1 4 1 1 Engine 23 | 1 6 9 . . . 1 1 . . . . 3 1 1 Core 1 | . . . . . . . . . . . . 1 . . Reactor 1 | . . . . . . . . . . . 1 . . . Propulsion 52 | 2 9 13 . . 2 10 . . . . . 13 . 3 Treads . | . . . . . . . . . . . . . . . Leg 52 | 2 9 13 . . 2 10 . . . . . 13 . 3 Wheel . | . . . . . . . . . . . . . . . Hover . | . . . . . . . . . . . . . . . Flight . | . . . . . . . . . . . . . . . Utility 78 | 1 3 7 3 . . 5 9 4 2 . 7 36 1 . Device 43 | . 2 6 3 . . 2 4 2 1 . 4 19 . . Storage 8 | 1 1 1 . . . 1 . . . . 1 3 . . Processor 3 | . . . . . . . 1 . . . . 2 . . Hackware 3 | . . . . . . . 1 . . . . 2 . . Protection 21 | . . . . . . 2 3 2 1 . 2 10 1 . Artifact . | . . . . . . . . . . . . . . . Weapon 77 | 2 7 21 2 . 2 15 1 2 2 . 4 17 . 2 Energy Gun 30 | 1 2 8 . . . 6 1 1 1 . 2 8 . . Energy Cannon 8 | . 1 3 . . . 1 . . . . . 3 . . Ballistic Gun 19 | 1 2 7 1 . 1 5 . . . . . 1 . 1 Ballistic Cannon . | . . . . . . . . . . . . . . . Launcher 18 | . 2 3 1 . 1 1 . 1 1 . 2 5 . 1 Special Weapon 1 | . . . . . . 1 . . . . . . . . Impact Weapon . | . . . . . . . . . . . . . . . Slashing Weapon 1 | . . . . . . 1 . . . . . . . . Piercing Weapon . | . . . . . . . . . . . . . . . Special Melee Weapon . | . . . . . . . . . . . . . . . Unidentified Prototypes 18 | . . 4 1 . . 3 1 . . . 1 7 1 . Corrupted Parts 2 | . . . . . . . . . . . . . . 2 System Corruption 20 | . . . . . . . . . . . . . . 20 Parts Lost 40 | . 3 4 . . . 3 . . . . . 28 . 2 Power 4 | . 1 . . . . . . . . . . 2 . 1 Propulsion 13 | . . 2 . . . 2 . . . . . 8 . 1 Utility 9 | . . . . . . . . . . . . 9 . . Weapon 14 | . 2 2 . . . 1 . . . . . 9 . . Highest Loss Streak 20 | . 3 1 . . . 2 . . . . . 20 . 2 Average Slot Usage (%) 98 | . 97 99 99 100 100 98 100 100 100 100 100 95 97 99 Engine 8 | . 14 10 11 11 11 9 7 7 7 7 1 2 3 5 Leg 23 | . 28 21 22 22 22 26 23 23 23 23 23 24 25 24 Device 19 | . 12 21 21 22 22 17 22 22 22 23 22 17 18 18 Storage 9 | . 14 11 11 11 11 9 7 7 7 7 7 5 6 6 Processor 2 | . . . . . . . 7 7 7 7 7 6 6 6 Hackware 3 | . . . . . . . 7 7 7 7 7 12 6 6 Protection 1 | . . . . . . 8 . . . . . 1 4 6 Energy Gun 13 | . 13 18 . . . 4 16 22 22 23 22 17 12 12 Energy Cannon 3 | . . 5 11 11 11 4 . . . . . . . . Ballistic Gun 9 | . 12 9 22 22 21 17 6 . . . . . 6 5 Naked Turns . | . . . . . . . . . . . . . . . Heaviest Build 88 | 14 31 41 41 41 41 67 83 67 65 65 72 88 53 53 Greatest Support 76 | 20 20 30 30 30 32 60 58 58 58 58 58 76 71 74 Greatest Overweight (x) 4 | 4 1 3 1 1 1 2 1 1 1 1 1 3 . . Average Overweight (x) . | . . 1 1 1 1 . 1 1 1 1 1 . . . Largest Inventory Capacity 20 | 8 15 15 15 15 15 20 20 20 20 20 20 20 10 10 Average Capacity 16 | 7 13 15 15 15 15 19 20 20 20 20 20 17 10 10 Most Carried 20 | 2 15 15 15 15 15 20 20 20 20 20 20 20 10 10 Average Carried 15 | 1 9 14 15 15 14 18 19 20 20 20 19 15 8 10 Final Capacity 20 | 8 15 15 15 15 15 20 20 20 20 20 20 10 10 10 Final Carried 20 | 2 14 15 15 15 15 20 20 20 20 20 20 6 10 10 Class Distribution -------------------- 25% | Gunner 16% | Skirmisher 13% | Tank 12% | Scavenger-Gunner 10% | Scavenger-Skirmisher 8% | Hacker-Skirmisher 7% | Mutant Dominant Class ---------------- Mutant | -10/Materials Scavenger-Gunner | -9/Materials Gunner | -9/Mines Gunner | -9/Exiles Gunner | -8/Mines Tank | -8/Materials Skirmisher | -7/Factory Skirmisher | -7/Lower Caves Skirmisher | -7/Lower Caves Skirmisher | -7/Data Miner Scavenger-Skirmisher | -6/Proximity Caves Hacker-Skirmisher | -6/Factory Scavenger-Skirmisher | -6/Lower Caves Scavenger-Skirmisher | -6/Lower Caves Resources | -11 -10 -9 -9 -9 -8 -8 -7 -7 -7 -7 -6 -6 -6 -6 ----------- Run | Scr Mat Mat Min Exi Min Mat Fac Low Low Dat Pro Fac Low Low Matter Collected 4350 | 259 366 887 150 . 42 960 211 118 95 . 65 1026 51 120 Remotely . | . . . . . . . . . . . . . . . Salvage Created 10326 | . 676 2481 462 . 10 2501 414 160 49 . 468 2823 . 282 Parts 442 | . 39 119 23 . 1 120 18 9 5 . 13 91 . 4 Haulers Intercepted 18 | . 1 6 . . . 6 2 . . . . 3 . . Recyclers Shooed 15 | . 1 5 . . 1 3 . . . . . 5 . . Parts Field Recycled . | . . . . . . . . . . . . . . . Retrieved Matter . | . . . . . . . . . . . . . . . Parts Self-Destructed 39 | . . . . . . . . 8 5 . 17 . 9 . Prevented 3 | . . . . . . . . . . . . . . 3 Kills | -11 -10 -9 -9 -9 -8 -8 -7 -7 -7 -7 -6 -6 -6 -6 ------- Run | Scr Mat Mat Min Exi Min Mat Fac Low Low Dat Pro Fac Low Low Combat Hostiles Destroyed 176 | . 19 42 10 . 2 36 4 6 4 . 13 36 . 4 Guns 107 | . 13 23 4 . . 31 4 3 1 . 6 22 . . Cannons 19 | . 3 9 2 . . 2 . . . . . 3 . . AOE 39 | . 3 10 4 . 2 3 . 2 3 . 4 6 . 2 Classes Destroyed 16 | . 5 7 . . . . 1 . . . . 3 . . Worker 9 | . 1 2 1 . . 1 2 . . . . 2 . . Builder 5 | . . 1 . . . . . . . . . 4 . . Tunneler 1 | . . . . . . . . . . . . 1 . . Hauler 18 | . 1 6 . . . 6 2 . . . . 3 . . Recycler 21 | . . 5 3 . . 6 1 . . . . 6 . . Mechanic 2 | . . 1 . . . . . . . . . 1 . . Operator 6 | . . 2 . . . 2 . . . . . 2 . . Watcher 13 | . 2 5 . . . 4 . . . . . 2 . . Swarmer 44 | . 6 4 8 . 2 6 . 3 4 . 4 7 . . Grunt 85 | . 13 24 . . . 20 2 2 . . 8 12 . 4 Brawler 2 | . . 1 1 . . . . . . . . . . . Duelist 8 | . . 3 1 . . 2 . 1 . . . 1 . . Sentry 22 | . . 10 . . . 8 . . . . 1 3 . . Specialist 3 | . . . . . . . . . . . . 3 . . Hunter 5 | . . . . . . . . . . . . 5 . . Programmer 7 | . . . . . . . 2 . . . . 5 . . Best Kill Streak 16 | . 5 9 4 . 2 6 5 3 4 . 6 16 . 4 Combat Bots Only 10 | . 5 8 4 . 2 6 2 3 4 . 6 10 . 4 Max Kills in Single Turn 5 | . 2 4 2 . 1 2 2 2 2 . 2 5 . 2 Gunslinging 1 | . . . . . . 1 . . . . . 1 . . Exploded 4 | . 2 4 2 . 1 2 . 2 2 . 2 2 . 2 Melee . | . . . . . . . . . . . . . . . Uniques/NPCs Destroyed . | . . . . . . . . . . . . . . . Combat | -11 -10 -9 -9 -9 -8 -8 -7 -7 -7 -7 -6 -6 -6 -6 -------- Run | Scr Mat Mat Min Exi Min Mat Fac Low Low Dat Pro Fac Low Low Damage Taken 9792 | . 1057 1445 129 . 24 1151 91 159 208 . 383 4785 40 320 Core 1413 | . 235 154 10 . . 84 . 11 32 . 33 782 20 52 Absorbed by Shields . | . . . . . . . . . . . . . . . Core Remaining (%) 67 | 100 6 . . . 59 84 . . . . 89 . . . Volleys Fired 552 | . 60 137 15 . 2 125 15 10 6 . 23 146 8 5 Largest 3 | . 2 3 3 . 1 3 3 3 2 . 3 3 3 3 Hottest 240 | . 110 156 118 . 33 118 141 196 116 . 196 240 148 148 Shots Fired 1436 | . 114 394 41 . 2 369 45 26 7 . 53 354 24 7 Gun 1224 | . 105 322 26 . . 305 45 24 2 . 46 322 24 3 Cannon 171 | . 6 65 13 . . 62 . . . . . 25 . . Launcher 41 | . 3 7 2 . 2 2 . 2 5 . 7 7 . 4 Special . | . . . . . . . . . . . . . . . Kinetic 456 | . 48 98 26 . . 244 15 . . . . 16 8 1 Thermal 939 | . 63 289 13 . . 123 30 24 2 . 46 331 16 2 Explosive 37 | . 3 7 2 . 2 2 . 2 5 . 7 7 . . Electromagnetic 4 | . . . . . . . . . . . . . . 4 Robot Hit Streak 27 | . 16 15 10 . . 14 11 5 2 . 15 27 . 2 Robot Miss Streak 6 | . 4 5 1 . . 6 1 3 1 . 2 4 . 1 Penetration Max 1 | . . . . . . . . . . . . 1 . . Secondary Targets 14 | . 3 1 . . . 3 . 2 . . 2 3 . . Max Gunslinging Chain 1 | . 1 1 . . . 1 . 1 . . 1 1 . . Shots Hit Robots 898 | . 78 249 24 . . 213 30 17 2 . 38 245 . 2 Core Hits 445 | . 38 105 15 . 2 89 13 12 6 . 33 125 . 7 Critical Kills 4 | . . 1 . . . 1 . . . . . 2 . . Critical Parts Destroyed 1 | . . . . . . . . . . . . 1 . . Critical Strikes 45 | . 6 8 . . . 4 2 2 . . 5 18 . . Burn 40 | . 6 7 . . . 3 2 2 . . 5 15 . . Destroy 5 | . . 1 . . . 1 . . . . . 3 . . Melee Attacks 1 | . . . . . . 1 . . . . . . . . Impact . | . . . . . . . . . . . . . . . Slashing 1 | . . . . . . 1 . . . . . . . . Piercing . | . . . . . . . . . . . . . . . Sneak Attacks . | . . . . . . . . . . . . . . . Combat Hostiles . | . . . . . . . . . . . . . . . Follow-up Attacks . | . . . . . . . . . . . . . . . Damage Inflicted 22396 | . 1354 4733 762 . 173 4644 606 515 321 . 1564 7308 . 416 Guns 13659 | . 944 2786 269 . . 3327 606 311 34 . 707 4624 . 51 Cannons 2203 | . 53 676 183 . . 796 . . . . . 495 . . Explosions 6243 | . 332 1201 294 . 155 435 . 204 287 . 857 2113 . 365 Melee . | . . . . . . . . . . . . . . . Ramming 291 | . 25 70 16 . 18 86 . . . . . 76 . . Kinetic 4702 | . 479 904 269 . . 2488 183 . . . . 351 . 28 Thermal 11297 | . 518 2643 183 . . 1635 423 311 34 . 707 4820 . 23 Explosive 5741 | . 332 1116 294 . 155 435 . 204 287 . 857 2061 . . Electromagnetic 365 | . . . . . . . . . . . . . . 365 Impact . | . . . . . . . . . . . . . . . Slashing . | . . . . . . . . . . . . . . . Piercing . | . . . . . . . . . . . . . . . Highest Corruption 34 | . . . . . . 2 1 1 1 1 1 14 14 34 Average Corruption 5 | . . . . . . 2 1 1 1 1 1 8 14 33 Corruption Purged . | . . . . . . . . . . . . . . . Effects 121 | . . . . . . 13 . 6 2 . 3 57 24 16 Message Errors 34 | . . . . . . 4 . 6 . . 3 10 9 2 Matter Fused 18 | . . . . . . . . . . . . 11 5 2 Heat Flow Errors 18 | . . . . . . 1 . . . . . 11 3 3 Energy Discharges 16 | . . . . . . 3 . . 1 . . 4 5 3 Data Loss (minor) 16 | . . . . . . 3 . . 1 . . 8 . 4 Data Loss (major) 6 | . . . . . . . . . . . . 3 1 2 Misfires 4 | . . . . . . . . . . . . 4 . . Alerts 2 | . . . . . . . . . . . . 1 1 . Misdirections 1 | . . . . . . . . . . . . 1 . . Weapon Failures 6 | . . . . . . 2 . . . . . 4 . . Overload Shots . | . . . . . . . . . . . . . . . Overflow Damage 340 | . 4 58 61 . . 37 . . . . 64 116 . . Projectiles 77 | . . 10 14 . . 11 . . . . . 42 . . Explosions 255 | . 4 48 47 . . 19 . . . . 64 73 . . Melee 8 | . . . . . . 7 . . . . . 1 . . Knockbacks 1 | . . . . . 1 . . . . . . . . . Impact 1 | . . . . . 1 . . . . . . . . . Kinetic . | . . . . . . . . . . . . . . . Secondary . | . . . . . . . . . . . . . . . Self-Inflicted Damage 470 | . 36 . 37 . 10 . . . 69 . . 203 . 115 Shots 15 | . 2 . 1 . 1 . . . 2 . . 4 . 5 Rammed . | . . . . . . . . . . . . . . . Targets Rammed 42 | . 7 13 1 . 2 11 . . . . . 8 . . Kicked 42 | . 7 13 1 . 2 11 . . . . . 8 . . Crushed . | . . . . . . . . . . . . . . . Highest Temperature 588 | . 219 111 . . . 177 15 . . . 1 588 165 218 Average Temperature 65 | . 83 19 . . . 21 5 . . . 1 172 75 98 Received Heat Transfer 2718 | . 438 528 . . . 594 18 45 . . 189 819 18 69 Effects 18 | . 1 . . . . . . . . . . 17 . . Shutdowns 4 | . . . . . . . . . . . . 4 . . Energy Bleed 1 | . . . . . . . . . . . . 1 . . Interference 2 | . 1 . . . . . . . . . . 1 . . Matter Decay 1 | . . . . . . . . . . . . 1 . . Short Circuit 2 | . . . . . . . . . . . . 2 . . Damage (minor) 2 | . . . . . . . . . . . . 2 . . Damage (major) 5 | . . . . . . . . . . . . 5 . . Damage (core) 1 | . . . . . . . . . . . . 1 . . Siege Activations . | . . . . . . . . . . . . . . . Robots Corrupted 2 | . . . . . . . . . . . . . . 2 Combat Hostiles 2 | . . . . . . . . . . . . . . 2 Parts Fried 5 | . . . . . . . . . . . . . . 5 Impact Corruptions 2 | . . . . . . 1 . . . . . 1 . . Robots Melted 10 | . . . . . . . . 1 . . 3 6 . . Combat Hostiles 9 | . . . . . . . . 1 . . 3 5 . . Parts Melted 65 | . 6 17 . . . 2 2 2 1 . 4 31 . . Heat Transferred 26906 | . 1924 6906 333 . . 3367 962 818 74 . 1833 10639 . 50 Parts Sabotaged . | . . . . . . . . . . . . . . . Parts Stolen . | . . . . . . . . . . . . . . . Parts Stripped . | . . . . . . . . . . . . . . . Power Chain Reactions 1 | . . . . . . . . . . . . . . 1 Missiles Intercepted . | . . . . . . . . . . . . . . . Alert | -11 -10 -9 -9 -9 -8 -8 -7 -7 -7 -7 -6 -6 -6 -6 ------- Run | Scr Mat Mat Min Exi Min Mat Fac Low Low Dat Pro Fac Low Low Peak Influence 821 | . 225 750 402 . 53 600 319 . . . . 821 . . Initial 292 | . . 88 292 . . . 273 . . . . 25 . . Average 221 | . 114 333 197 . 23 241 173 . . . . 225 . . Maximum Alert Level 3 | . 1 3 2 . . 2 1 . . . . 3 . . Low Security (%) 50 | 100 81 22 33 . 100 36 62 . . . . 70 . . Level 1 35 | . 18 46 61 . . 54 37 . . . . 8 . . Level 2 9 | . . 22 4 . . 9 . . . . . 6 . . Level 3 4 | . . 7 . . . . . . . . . 14 . . Level 4 . | . . . . . . . . . . . . . . . Level 5 . | . . . . . . . . . . . . . . . High Security . | . . . . . . . . . . . . . . . Max Security . | . . . . . . . . . . . . . . . Squads Dispatched 33 | . 4 8 . . . 3 3 . . . . 15 . . Investigation 8 | . 4 3 . . . . . . . . . 1 . . Extermination 5 | . . . . . . . 2 . . . . 3 . . Reinforcement 14 | . . 3 . . . 3 1 . . . . 7 . . Assault 3 | . . 2 . . . . . . . . . 1 . . Garrison 3 | . . . . . . . . . . . . 3 . . Intercept . | . . . . . . . . . . . . . . . Construction Impeded 3 | . . . . . . . . . . . . 3 . . Haulers Reinforced 2 | . . . . . . . . . . . . 2 . . Cargo Convoy Interrupts 1 | . . . . . . . . . . . . 1 . . Stealth | -11 -10 -9 -9 -9 -8 -8 -7 -7 -7 -7 -6 -6 -6 -6 --------- Run | Scr Mat Mat Min Exi Min Mat Fac Low Low Dat Pro Fac Low Low Distress Signals 9 | . 2 2 . . . 4 . . . . . 1 . . Communications Jammed . | . . . . . . . . . . . . . . . Distress Signals . | . . . . . . . . . . . . . . . Times Spotted 258 | . 30 57 13 . 3 55 5 6 3 . 16 61 4 5 Peak Tracking Total 12 | . 6 6 4 . 3 6 1 3 4 . 7 12 4 4 Tactical Retreats 10 | . 2 1 . . . 2 . . . . 2 3 . . Traps | -11 -10 -9 -9 -9 -8 -8 -7 -7 -7 -7 -6 -6 -6 -6 ------- Run | Scr Mat Mat Min Exi Min Mat Fac Low Low Dat Pro Fac Low Low Traps Triggered 11 | . 4 2 . . . 1 . . . . . 4 . . Indirectly . | . . . . . . . . . . . . . . . Trap Hack Attempts . | . . . . . . . . . . . . . . . Triggered . | . . . . . . . . . . . . . . . Disarmed . | . . . . . . . . . . . . . . . Reprogrammed . | . . . . . . . . . . . . . . . Reused . | . . . . . . . . . . . . . . . Traps Extracted . | . . . . . . . . . . . . . . . Installed . | . . . . . . . . . . . . . . . Triggered . | . . . . . . . . . . . . . . . Machines | -11 -10 -9 -9 -9 -8 -8 -7 -7 -7 -7 -6 -6 -6 -6 ---------- Run | Scr Mat Mat Min Exi Min Mat Fac Low Low Dat Pro Fac Low Low Machines Disabled 18 | . . 9 . . . 3 . . . . 1 5 . . Max in Single Turn 3 | . . 2 . . . 1 . . . . 1 3 . . Garrison Access 2 | . . . . . . 1 . . . . . 1 . . Machines Sabotaged . | . . . . . . . . . . . . . . . Garrisons Compromised . | . . . . . . . . . . . . . . . Overloaded Fab Kills . | . . . . . . . . . . . . . . . Fab Network Shutdowns . | . . . . . . . . . . . . . . . Hacking | -11 -10 -9 -9 -9 -8 -8 -7 -7 -7 -7 -6 -6 -6 -6 --------- Run | Scr Mat Mat Min Exi Min Mat Fac Low Low Dat Pro Fac Low Low Machines Accessed 52 | . 10 11 2 1 1 13 . . . 4 . 10 . . Terminals 31 | . 7 8 1 . 1 9 . . . . . 5 . . Fabricators 1 | . . . . . . . . . . . . 1 . . Repair Stations 8 | . 1 2 . . . 2 . . . . . 3 . . Recycling Units 3 | . 2 1 . . . . . . . . . . . . Scanalyzers 1 | . . . . . . 1 . . . . . . . . Garrison Access 2 | . . . . . . 1 . . . . . 1 . . Total Hacks 203 | . 34 35 5 4 5 54 . . . 29 . 37 . . Successful 154 | . 22 25 4 4 4 37 . . . 29 . 29 . . Failed 49 | . 12 10 1 . 1 17 . . . . . 8 . . Catastrophic 3 | . . 1 . . . 2 . . . . . . . . Database Lockouts . | . . . . . . . . . . . . . . . Manual 97 | . 25 20 3 . 5 29 . . . . . 15 . . Terminals 104 | . 24 22 4 . 5 33 . . . . . 16 . . Fabricators 4 | . . . . . . . . . . . . 4 . . Repair Stations 48 | . 7 12 . . . 14 . . . . . 15 . . Recycling Units 4 | . 3 1 . . . . . . . . . . . . Scanalyzers 6 | . . . . . . 6 . . . . . . . . Garrison Access 3 | . . . . . . 1 . . . . . 2 . . Terminal Hacks 72 | . 8 7 4 4 3 10 . . . 29 . 7 . . Record 15 | . . . . 4 . . . . . 11 . . . . Part Schematic 9 | . . . . . . 1 . . . 8 . . . . Robot Schematic 7 | . . . . . . . . . . 7 . . . . Prototype ID Bank 3 | . . . . . . . . . . 3 . . . . Open Door 1 | . . . 1 . . . . . . . . . . . Level Access Points 1 | . . . 1 . . . . . . . . . . . Branch Access Points 1 | . . . . . . . . . . . . 1 . . Machine Index 1 | . . . . . . 1 . . . . . . . . Terminal Index 6 | . 1 1 1 . 1 1 . . . . . 1 . . Fabricator Index 1 | . . . . . . . . . . . . 1 . . Repair Station Index 1 | . . . . . . 1 . . . . . . . . Alert Level 9 | . 2 3 . . 1 2 . . . . . 1 . . Unreport Threat 4 | . . 1 . . . 1 . . . . . 2 . . Hauler Manifests 2 | . 1 . . . . . . . . . . 1 . . Zone Layout 11 | . 4 2 1 . 1 3 . . . . . . . . Fabricator Hacks 2 | . . . . . . . . . . . . 2 . . Load Schematic 1 | . . . . . . . . . . . . 1 . . Build 1 | . . . . . . . . . . . . 1 . . Repair Station Hacks 45 | . 7 12 . . . 12 . . . . . 14 . . Scan Component 24 | . 4 6 . . . 6 . . . . . 8 . . Repair 21 | . 3 6 . . . 6 . . . . . 6 . . Recycling Unit Hacks . | . . . . . . . . . . . . . . . Scanalyzer 6 | . . . . . . 6 . . . . . . . . Insert Component 3 | . . . . . . 3 . . . . . . . . Analyze 3 | . . . . . . 3 . . . . . . . . Garrison Access Hacks 2 | . . . . . . 1 . . . . . 1 . . Seal Access 2 | . . . . . . 1 . . . . . 1 . . Unauthorized Hacks 27 | . 7 6 . . 1 8 . . . . . 5 . . Terminals 22 | . 5 5 . . 1 8 . . . . . 3 . . Assimilate 1 | . . . . . . 1 . . . . . . . . Botnet 20 | . 4 5 . . 1 7 . . . . . 3 . . Disrupt 1 | . 1 . . . . . . . . . . . . . Fabricators 2 | . . . . . . . . . . . . 2 . . Prioritize 1 | . . . . . . . . . . . . 1 . . Siphon 1 | . . . . . . . . . . . . 1 . . Repair Stations . | . . . . . . . . . . . . . . . Recycling Units 3 | . 2 1 . . . . . . . . . . . . Tunnel 3 | . 2 1 . . . . . . . . . . . . Scanalyzers . | . . . . . . . . . . . . . . . Garrison Access . | . . . . . . . . . . . . . . . Data Cores Recovered 1 | . . . . . . . . . . . . 1 . . Used 1 | . . . . . . . . . . . . 1 . . Hacking Detections 37 | . 7 10 1 . 1 9 . . . . . 9 . . Full Trace Events 1 | . . . . . . 1 . . . . . . . . Feedback Events . | . . . . . . . . . . . . . . . Feedback Blocked . | . . . . . . . . . . . . . . . Robot Schematics Acquired 7 | . . . . . . . . . . 7 . . . . Robots Built . | . . . . . . . . . . . . . . . Matter . | . . . . . . . . . . . . . . . Time . | . . . . . . . . . . . . . . . Total Robot Build Rating . | . . . . . . . . . . . . . . . Part Schematics Acquired 12 | . . . . . . 4 . . . 8 . . . . Parts Built 1 | . . . . . . . . . . . . 1 . . Matter 318 | . . . . . . . . . . . . 318 . . Time 169 | . . . . . . . . . . . . 169 . . Total Part Build Rating 6 | . . . . . . . . . . . . 6 . . Parts Repaired 21 | . 3 6 . . . 6 . . . . . 6 . . Time 730 | . 78 180 . . . 232 . . . . . 240 . . Parts Recycled . | . . . . . . . . . . . . . . . Recycled Matter . | . . . . . . . . . . . . . . . Retrieved Matter . | . . . . . . . . . . . . . . . Retrieved Components . | . . . . . . . . . . . . . . . Parts Scanalyzed 3 | . . . . . . 3 . . . . . . . . Part Schematics Acquired 3 | . . . . . . 3 . . . . . . . . Parts Damaged . | . . . . . . . . . . . . . . . Bothacking | -11 -10 -9 -9 -9 -8 -8 -7 -7 -7 -7 -6 -6 -6 -6 ------------ Run | Scr Mat Mat Min Exi Min Mat Fac Low Low Dat Pro Fac Low Low Used RIF Installer . | . . . . . . . . . . . . . . . Robots Hacked . | . . . . . . . . . . . . . . . Non-combat . | . . . . . . . . . . . . . . . Combat . | . . . . . . . . . . . . . . . Robot Hacks Applied . | . . . . . . . . . . . . . . . Relay Couplers Released 3 | . . . . . . . . . . . . 3 . . Machine Destruction 3 | . . . . . . . . . . . . 3 . . Robots Rewired . | . . . . . . . . . . . . . . . Allies Hacked . | . . . . . . . . . . . . . . . Hacks Repelled . | . . . . . . . . . . . . . . . Allies | -11 -10 -9 -9 -9 -8 -8 -7 -7 -7 -7 -6 -6 -6 -6 -------- Run | Scr Mat Mat Min Exi Min Mat Fac Low Low Dat Pro Fac Low Low Total Allies 2 | . . . . . . 1 . . . . 1 . . . Largest Group 1 | . . . . . . 1 . . . . 1 . . . Highest-Rated Group 95 | . . . . . . 10 . . . . 95 . . . Highest-Rated Ally 95 | . . . . . . 10 . . . . 95 . . . Total Orders . | . . . . . . . . . . . . . . . Ally Attacks 4 | . . . . . . . . . . . 4 . . . Total Damage 92 | . . . . . . . . . . . 92 . . . Kills 1 | . . . . . . . . . . . 1 . . . Allies Corrupted . | . . . . . . . . . . . . . . . Allies Melted . | . . . . . . . . . . . . . . . Intel | -11 -10 -9 -9 -9 -8 -8 -7 -7 -7 -7 -6 -6 -6 -6 ------- Run | Scr Mat Mat Min Exi Min Mat Fac Low Low Dat Pro Fac Low Low Robot Analysis Total . | . . . . . . . . . . . . . . . Derelict Logs Recovered 4 | . . . 1 . . . . . . . 1 . 1 1 Drone Launches . | . . . . . . . . . . . . . . . Drone Recoveries . | . . . . . . . . . . . . . . . Exploration | -11 -10 -9 -9 -9 -8 -8 -7 -7 -7 -7 -6 -6 -6 -6 ------------- Run | Scr Mat Mat Min Exi Min Mat Fac Low Low Dat Pro Fac Low Low Turns Passed 17610 | 64 1481 3520 1808 310 956 2351 1053 945 716 163 891 2482 557 313 Spaces Moved 7648 | 44 600 1343 772 156 471 799 444 436 336 80 384 1157 388 238 Core 28 | 14 . . . . . . . . . . . 14 . . Treads . | . . . . . . . . . . . . . . . Legs 7620 | 30 600 1343 772 156 471 799 444 436 336 80 384 1143 388 238 Wheels . | . . . . . . . . . . . . . . . Hover . | . . . . . . . . . . . . . . . Flight . | . . . . . . . . . . . . . . . Fastest Speed 50 | 50 120 200 200 200 200 123 206 206 206 206 206 50 112 110 Average Speed 181 | 122 181 200 200 200 200 202 206 206 206 206 206 124 112 111 Slowest Speed 360 | 250 200 360 200 200 205 285 206 206 206 206 206 210 112 112 Overloaded Moves . | . . . . . . . . . . . . . . . Propulsion Burnouts . | . . . . . . . . . . . . . . . Robots Hopped . | . . . . . . . . . . . . . . . Cave-ins Triggered . | . . . . . . . . . . . . . . . Exploration Rate (%) 60 | 3 96 96 98 54 96 75 14 69 53 69 50 27 59 45 Regions Visited 14 Branch Regions 9 Pre-discovered Areas 8 | . 2 1 1 1 . . . . . 1 . . 1 1 Known Exits Taken 8 | . . . . . 1 . 1 1 1 1 1 1 1 . Unknown Exits Taken 6 | 1 1 1 1 1 . 1 . . . . . . . . Scrap Searched 15 | . . . 2 . 1 . . 3 1 . 2 . 3 3 Spaces Dug 98 | . 5 . . . 14 1 . . . . 29 25 18 6 Terrain Destroyed 376 | . 17 58 14 . 14 43 . 7 38 . 89 63 24 9 Melee 1 | . . . . . . 1 . . . . . . . . Projectile 56 | . . 1 . . . . . . . . . 28 24 3 AOE 319 | . 17 57 14 . 14 42 . 7 38 . 89 35 . 6 Terrain Rammed . | . . . . . . . . . . . . . . . Walls Destroyed . | . . . . . . . . . . . . . . . Machines Disabled . | . . . . . . . . . . . . . . . Actions | -11 -10 -9 -9 -9 -8 -8 -7 -7 -7 -7 -6 -6 -6 -6 --------- Run | Scr Mat Mat Min Exi Min Mat Fac Low Low Dat Pro Fac Low Low Total 10363 | 51 876 1888 1015 155 481 1343 557 459 351 79 435 1904 491 278 Wait 1666 | . 155 274 218 . . 331 74 8 6 . 10 473 89 28 Move 7635 | 43 599 1342 771 155 470 798 443 435 335 79 383 1157 387 238 Hop . | . . . . . . . . . . . . . . . Pick Up 106 | 2 17 26 1 . 1 22 7 . . . 2 24 4 . Fast Attach 74 | 6 6 15 3 . . 13 2 . . . 3 21 3 2 Attach 42 | . 5 6 . . . 6 2 . . . . 23 . . Detach . | . . . . . . . . . . . . . . . Swap 117 | . 14 29 2 . 4 12 7 6 4 . 9 26 . 4 Drop 124 | . 13 46 4 . 2 24 7 . . . 5 22 . 1 Fire 552 | . 60 137 15 . 2 125 15 10 6 . 23 146 8 5 Melee 1 | . . . . . . 1 . . . . . . . . Ram . | . . . . . . . . . . . . . . . Kick 41 | . 7 13 1 . 2 11 . . . . . 7 . . Crush . | . . . . . . . . . . . . . . . Escape Stasis 5 | . . . . . . . . . . . . 5 . . Rewire . | . . . . . . . . . . . . . . . Trap . | . . . . . . . . . . . . . . . Miscellaneous . | . . . . . . . . . . . . . . . Route ------- -11/Scrapyard -10/Materials (discovered 4 exits: *Mat x3 / [*Min]) -9/Materials (discovered 4 exits: *Mat x3 / *Min) -9/Mines (discovered 3 exits: *Mat x2 / *Exi) -9/Exiles (discovered 2 exits: *Min x2) -8/Mines (discovered 2 exits: *Mat x2) -8/Materials (discovered 2 exits: *Fac x2) -7/Factory (discovered 2 exits: *Fac / *Low) -7/Lower Caves -7/Lower Caves -7/Data Miner -6/Proximity Caves -6/Factory (discovered 5 exits: *Fac / *Low x2 / Ext x2) -6/Lower Caves -6/Lower Caves (discovered 2 exits: *Fac / [*Zio]) History --------- Turn | Location | Event 16 | -11/Scrapyard | Discovered new exit (range 16) 65 | -11/Scrapyard | Entered Materials 301 | -10/Materials | Build established: Mutant 332 | -10/Materials | Discovered new exit (range 14) 490 | -10/Materials | Discovered new exit (range 10) 696 | -10/Materials | Repaired Med. Laser 723 | -10/Materials | Repaired Assault Rifle 751 | -10/Materials | Repaired Heat Sink 869 | -10/Materials | Discovered new exit (range 8) 968 | -10/Materials | Core integrity fell below 50% 1342 | -10/Materials | Build established: Scavenger-Mutant 1408 | -10/Materials | Discovered new exit (range 16) 1452 | -10/Materials | Core integrity fell below 20% 1487 | -10/Materials | Lost 3 parts (1p2w) 1546 | -10/Materials | Entered another Materials area 1546 | -9/Materials | Evolved 2 slots: Utility x1, Weapon x1 1850 | -9/Materials | Build established: Gunner 2207 | -9/Materials | Discovered new exit (range 14) 2426 | -9/Materials | Build established: Scavenger-Gunner 2586 | -9/Materials | Discovered new exit (range 15) 2936 | -9/Materials | Repaired Heat Sink 2970 | -9/Materials | Repaired Imp. Ion Engine 3003 | -9/Materials | Repaired Imp. Aluminum Leg 3030 | -9/Materials | Repaired Ion Engine 3685 | -9/Materials | Discovered new exit (range 8) 3964 | -9/Materials | Repaired Imp. Aluminum Leg 3997 | -9/Materials | Repaired Beam Rifle 4351 | -9/Materials | Discovered new exit (range 4) 4542 | -9/Materials | Build established: Gunner 4746 | -9/Materials | First assault squad dispatched 4817 | -9/Materials | Destroyed 8 combat bots 5066 | -9/Materials | Entered Mines 5073 | -9/Mines | Identified exit to Materials 5076 | -9/Mines | Assembled infested the area 5260 | -9/Mines | Deemed a non-threat by the Exiles lab entrance 5718 | -9/Mines | Found the Drone Emporium 5728 | -9/Mines | Found Prototype Device 5728 | -9/Mines | Identified Bomb Drone Bay 6466 | -9/Mines | Received a Rocket Launcher from a helpful Derelict 6866 | -9/Mines | Discovered new exit (range 5) 6874 | -9/Mines | Entered Exiles 6906 | -9/Exiles | Discovered new exit (range 15) 6928 | -9/Exiles | Met 8R-AWN 6956 | -9/Exiles | Met EX-HEX 7054 | -9/Exiles | Met EX-DEC 7090 | -9/Exiles | Learned location of Zion (-6) 7160 | -9/Exiles | Discovered new exit (range 14) 7184 | -9/Exiles | Entered Mines 7642 | -8/Mines | Discovered exit to Materials (range 8) 7836 | -8/Mines | Discovered exit to Materials (range 7) 8140 | -8/Mines | Entered Materials 8140 | -8/Materials | Evolved 2 slots: Propulsion x1, Utility x1 8422 | -8/Materials | Build established: Tank 9067 | -8/Materials | Discovered new exit (range 9) 9938 | -8/Materials | Repaired Cooling System 9971 | -8/Materials | Repaired Cooling System 10005 | -8/Materials | Repaired Hrd. Light Armor Plating 10044 | -8/Materials | Repaired Carbon-fiber Leg 10084 | -8/Materials | Repaired Titanium Leg 10145 | -8/Materials | Repaired Enh. Autogun 10374 | -8/Materials | Discovered new exit (range 16) 10491 | -8/Materials | Entered Factory 10491 | -7/Factory | Evolved 2 slots: Utility x2 10671 | -7/Factory | Discovered new exit (range 15) 10698 | -7/Factory | Identified exit to Factory 10780 | -7/Factory | Build established: Skirmisher 11458 | -7/Factory | Discovered new exit (range 14) 11483 | -7/Factory | Identified exit to Lower Caves 11544 | -7/Factory | Entered Lower Caves 11577 | -7/Lower Caves | Encountered a Warlord checkpoint 12415 | -7/Lower Caves | Discovered new exit (range 7) 12429 | -7/Lower Caves | Identified exit to Lower Caves 12489 | -7/Lower Caves | Entered another Lower Caves area 13038 | -7/Lower Caves | Discovered new exit (range 14) 13095 | -7/Lower Caves | Identified exit to Data Miner 13205 | -7/Lower Caves | Entered Data Miner 13205 | -7/Data Miner | Discovered new exit (range 6) 13245 | -7/Data Miner | Met Data Miner 13288 | -7/Data Miner | Learned location of Section 7 (-2) 13288 | -7/Data Miner | Acquired the access code to Warlord's prototype stash 13317 | -7/Data Miner | Received God Mode back door access code from Data Miner 13364 | -7/Data Miner | Identified exit to Proximity Caves 13368 | -7/Data Miner | Entered Proximity Caves 13388 | -6/Proximity Caves | Escorted by Enhanced Grunt 13515 | -6/Proximity Caves | Attracted the attention of an 0b10 base 13800 | -6/Proximity Caves | Learned 4 Factory zone layouts 13863 | -6/Proximity Caves | Build established: Scavenger-Skirmisher 14061 | -6/Proximity Caves | Discovered exit to Factory (range 14) 14259 | -6/Proximity Caves | Entered Factory 14259 | -6/Factory | Evolved 2 slots: Propulsion x1, Utility x1 14260 | -6/Factory | Identified exit to Extension 14918 | -6/Factory | Identified exit to Lower Caves 15027 | -6/Factory | Repaired Imp. Carbon-fiber Leg 15695 | -6/Factory | Fabricated Mni. Smartbomb Launcher? 15710 | -6/Factory | Repaired Imp. Carbon-fiber Leg 15755 | -6/Factory | Repaired Imp. Carbon-fiber Leg 15776 | -6/Factory | Build established: Hacker-Skirmisher 15801 | -6/Factory | Repaired Imp. Titanium Leg 15834 | -6/Factory | Repaired Cooling System 15868 | -6/Factory | Repaired Cooling System 15980 | -6/Factory | Discovered new exit (range 15) 16046 | -6/Factory | Garrison activated, responded to threat 16220 | -6/Factory | Cargo convoy interrupted 16277 | -6/Factory | Core integrity fell below 50% 16286 | -6/Factory | System corruption reached 10% 16292 | -6/Factory | Destroyed 10 combat bots 16319 | -6/Factory | Core integrity fell below 20% 16349 | -6/Factory | Lost 20 parts (1p6n6u7w) 16359 | -6/Factory | First assault squad dispatched 16365 | -6/Factory | Found Prototype Launcher 16365 | -6/Factory | Identified Com. Tesla Bomb Launcher 16386 | -6/Factory | Incoming assault squad redirected 16396 | -6/Factory | Found Com. Tesla Bomb Launcher 16741 | -6/Factory | Entered Lower Caves 16903 | -6/Lower Caves | Found Alien Artifact 16903 | -6/Lower Caves | Identified Core Expander 16903 | -6/Lower Caves | Installed Core Expander, added new Power slot 17013 | -6/Lower Caves | Build established: Scavenger-Skirmisher 17266 | -6/Lower Caves | Discovered new exit (range 15) 17293 | -6/Lower Caves | Ambushed by wild Derelicts 17297 | -6/Lower Caves | Identified exit to Lower Caves 17298 | -6/Lower Caves | Entered another Lower Caves area 17314 | -6/Lower Caves | System corruption reached 30% 17325 | -6/Lower Caves | Discovered new exit (range 15) 17345 | -6/Lower Caves | Identified exit to Factory 17590 | -6/Lower Caves | Encountered a Warlord checkpoint 17592 | -6/Lower Caves | Discovered new exit (range 9) 17610 | -6/Lower Caves | Attracted the attention of an 0b10 checkpoint 17611 | -6/Lower Caves | Destroyed by Y-54 Guardian with Gatling Laser Last Messages --------------- World map updated: -5/Factory. 17520_ System corrupted: Heat flow error (+106). 17541_ System corrupted: Component data lost. 17557_ System corrupted: Matter fused (-10). 17572_ System corrupted: Energy discharge (-72). 17587_ System corrupted: Energy discharge (-129). 17590_ L5-E49(M): "If you spot any more Unaware lurking around the area, let us know." 17592_ EXIT=FOUND 17598_ Searching scrap... 17598_ Found Mak. Power Source. 17598_ Found Imp. Targeting Computer. 17598_ Found Imp. Propulsion Shielding. 17598_ Found 24 Matter. 17599_ Acquired 24 matter. 17603_ System corrupted: Component data lost. 17610_ Y-54 Guardian: "INTERCEPTING UNREGISTERED DERELICT." 17610_ Destroyed Imp. Heat Sink. 17610_ Slug penetrates Y-54 Guardian. 17610_ Slug penetrates Wall. Map ----- +----------------------------------------------------+ | ???????????????????????????????????????????????? | | ???????????????????????????????????????????###?# | | ??????????????????????????????###????????### ### | | ?????????????????????????????## #??????## | | ?????????????????????????????# ????### | | ??????????????????????? ###?## ???## ##### | | ??????????????????????? ## ???# ##???# | | ?????????????????????? #???# #????? | | ?????????????????????? #???# #????? | | ????????????????????? ? #???# ###??? | | ????????????????????? #?# ##### #??# | | ???????????????????? ??# ## ##?# | | ????????????????????? ??# ### | | ???????????????#????? ???# | | ???????????????# ????? ??## ### | | ???????????????# ????? #??# ## #?? | | ??????????????## ????# #??## ## ### | | ??????????????# ????# #???## ### | | ??????????????# ???# ###??## ####?## | | ??????????????# #### ##??# ##?????## | | ??????????????# #??# ##???????# | | ?????????????### % #?## #????????? ## | | ?????????????# ; *! ### #???????????? | | ???????????????# Y M ### ##???????????? | | ???????????????# ; ! ###????????????? | | ???????????????# ?# @ ### ##??????????????? | | ???????????????#??# #?###???????????????? | | ??????????????????#### ## #???????????????????? | | ???????????????????? # ??????????????????? | | ?????????????????? # ????????????????? | | ???????????????? ### #? ####???????????????? | | ??????????????? ???# < ??##??????????????????? | | ??????????????? ???? # ?????????????????????? | | ?????????????? ????# #?????????????????????? | | ?????????????? ?????######?????????????????????? | | ???????????????????????????????????????????????? | | ???????????????????????????????????????????????? | | ???????????????????????????????????????????????? | | ???????????????????????????????????????????????? | | ???????????????????????????????????????????????? | | ???????????????????????????????????????????????? | | ???????????????????????????????????????????????? | | ???????????????????????????????????????????????? | | ???????????????????????????????????????????????? | | ???????????????????????????????????????????????? | | ???????????????????????????????????????????????? | | ???????????????????????????????????????????????? | | ???????????????????????????????????????????????? | | ???????????????????????????????????????????????? | | ???????????????????????????????????????????????? | +----------------------------------------------------+ Best States ------------- Heat Dissipation 81 Energy Generation 31 Energy Capacity 810 Matter Stores 300 Matter Capacity 600 Sight Range 16 Robot Scan Range 15 Terrain Scan Density 10 Armor Coverage 225 Resistance: KI 30 Weapon Cycling 15 Evasion (%) 55 Offensive Hacking 20 Item Schematics ----------------- Cooling System | -8/Materials | Scanalyzed Hacking Suite | -8/Materials | Scanalyzed Adv. Targeting Computer | -8/Materials | Scanalyzed Machine Analyzer | -8/Materials | Hacked Combat Drone Bay | -7/Data Miner | Free Lgt. Regenerative Plating | -7/Data Miner | Free Exp. Flexi-carbon Leg | -7/Data Miner | Free Cmb. Gravmag System | -7/Data Miner | Free Exp. Cesium-ion Thruster | -7/Data Miner | Free Exp. Terrain Scan Processor | -7/Data Miner | Free Cloaking Device | -7/Data Miner | Free Mni. Smartbomb Launcher | -7/Data Miner | Free Robot Schematics ------------------ S-27 Virus | -7/Data Miner | Free G-50 Soldier | -7/Data Miner | Free G-67 Veteran | -7/Data Miner | Free H-66 Slayer | -7/Data Miner | Free P-70 Sage | -7/Data Miner | Free I-36 Angel | -7/Data Miner | Free I-47 Archangel | -7/Data Miner | Free Fabricated ------------ Mni. Smartbomb Launcher | x1 | -6/Factory Alien Tech Used ----------------- Core Expander Achievements -------------- None Challenges ------------ None Game ------ Seed ManeuveringHellfireBlade Manual? 0 Play Time 01:26:25 Cumulative 1259.9 hours Start 2021.06.11 @ 14:20:59 End 2021.06.11 @ 15:57:57 Sessions 1 Manual Loads 0 Difficulty Rogue Special Mode None Game No. 428 Rogue 428 Adventurer 0 Explorer 0 Win Type - Total 91 Types 20/12/37/5/1/2/12/1/1 Lore% 97 Gallery% 96 Achievement% 85 Wizard Run 0 Options --------- ASCII 0 Keyboard 0 Movement Numpad Keybinds 0 Fullscreen 1 Font 18/SmallcapsGlow Map View 76x50 Tactical HUD 1 Map Filters NONE Filters NONE Steam 1 RUN: 2fb10b93-59fb-426e-bf16-e123a4e6b21a